bitfinex/quotes_ETHUSD_20230903
["timestamp","ask_amount","ask_price","bid_price","bid_amount"]
[1693769053287,2.0432,1638.4,1638.1,1.91282313]
[1693769053495,2.0432,1638.4,1638.2,1.06070632]
[1693769053795,2.0432,1638.4,1638.2,1.3157161]
[1693769054016,2.0432,1638.4,1638.2,0.25500978]
[1693769054295,2.0432,1638.4,1638.2,0.89320357]
[1693769054491,2.0432,1638.4,1638.3,1.06070628]
[1693769054692,2.0432,1638.4,1638.3,0.2548388]
[1693769054892,2.0432,1638.4,1638.3,1.31554508]
[1693769055124,2.0432,1638.4,1638.3,1.06070628]
[1693769055525,2.0432,1638.4,1638.2,1.69890007]
[1693769071541,3.5962,1638.4,1638.2,1.69890007]
[1693769072010,3.5962,1638.4,1638.3,1.06070628]
[1693769072208,3.5962,1638.4,1638.2,0.63819379]
[1693769080540,4.22252237,1638.4,1638.2,0.63819379]
[1693769080740,1.553,1638.3,1638.0,0.63819379]
[1693769080957,1.553,1638.2,1638.0,1.69901485]
[1693769081265,1.553,1638.2,1638.1,1.06082106]
[1693769081466,1.92393,1638.2,1637.9,1.59554646]
[1693769082039,3.94923,1638.2,1637.9,1.59554646]
[1693769083268,3.94923,1638.2,1637.9,0.63819379]
[1693769083637,1.553,1638.1,1637.9,0.63819379]
[1693769084343,1.553,1638.1,1637.9,1.69903976]
[1693769084543,1.553,1638.1,1638.0,1.3165366]
[1693769093056,1.553,1638.1,1638.0,0.25569063]
[1693769093339,1.553,1638.1,1637.8,2.65640628]
[1693769095116,1.553,1638.1,1637.9,1.06085929]
[1693769095308,1.553,1638.1,1637.8,1.60057905]
[1693769095509,1.553,1638.1,1637.8,2.66143791]
[1693769099644,1.553,1638.1,1637.9,0.25604392]
[1693769101045,3.5783,1638.2,1637.9,0.25604392]
[1693769101230,2.0253,1638.2,1637.9,0.25604392]
[1693769101536,2.0253,1638.2,1637.9,0.89627554]
[1693769101743,2.0253,1638.2,1638.0,1.06085292]
[1693769102611,2.60815909,1638.3,1638.0,1.06085292]
[1693769102825,0.48365909,1638.3,1637.9,1.85662297]
[1693769103024,1.553,1638.4,1638.0,1.06078859]
[1693769103225,1.553,1638.4,1638.0,1.66071515]
[1693769103431,6.23722372,1638.5,1638.0,0.59992656]
[1693769103633,4.68422372,1638.5,1638.0,2.30092915]
[1693769103953,4.68422372,1638.5,1638.1,1.06077097]
[1693769104119,4.68422372,1638.5,1638.1,1.3165841]
[1693769104316,4.68422372,1638.5,1638.1,0.25581313]
[1693769104629,4.68422372,1638.5,1638.0,1.24015818]
[1693769104841,4.68422372,1638.5,1638.1,1.06072146]
[1693769105728,4.68422372,1638.5,1638.0,2.20050561]
[1693769105928,4.68422372,1638.5,1638.1,1.06071945]
[1693769106129,4.68422372,1638.5,1638.0,2.20050561]
[1693769106424,4.68422372,1638.5,1638.1,1.06071986]
[1693769106624,4.68422372,1638.5,1638.0,2.20050561]
[1693769106856,4.68422372,1638.5,1638.1,1.06072012]
[1693769107156,4.68422372,1638.5,1638.1,1.38684269]
[1693769107363,4.68422372,1638.5,1638.1,0.32612257]
[1693769107571,4.68422372,1638.5,1638.0,1.24015818]
[1693769107868,4.68422372,1638.5,1638.1,1.06072778]
[1693769108365,0.00419899,1638.4,1638.1,1.06072778]
[1693769108666,1.55719899,1638.4,1638.1,1.06072778]
[1693769109054,1.553,1638.3,1638.0,0.64023162]
[1693769109238,1.553,1638.3,1638.0,1.70100247]
[1693769109439,0.00401644,1638.2,1638.0,1.70100247]
[1693769109650,0.00401644,1638.2,1638.1,0.25515599]
[1693769109867,0.00401644,1638.2,1638.1,1.31592684]
[1693769110646,0.00401644,1638.2,1638.1,0.25515599]
[1693769111183,3.45871644,1638.3,1638.1,0.25515599]
[1693769111388,1.553,1638.2,1637.9,0.64023162]
[1693769111686,1.55655043,1638.2,1637.9,1.7010447]
[1693769112741,0.00355043,1638.2,1637.9,1.7010447]
[1693769114646,0.00355043,1638.2,1638.0,0.25443716]
[1693769116401,3.5047,1638.3,1638.0,0.25443716]
[1693769116605,3.85517,1638.3,1638.0,0.25443716]
[1693769121316,4.33685331,1638.3,1638.0,0.25443716]
[1693769122859,1.553,1638.2,1638.0,0.25443716]
[1693769123454,3.5178,1638.2,1638.0,0.25443716]
[1693769126797,1.9648,1638.2,1638.0,0.25443716]
[1693769131058,2.03468331,1638.3,1638.0,0.25443716]
[1693769131260,0.48168331,1638.3,1638.0,0.89466878]
[1693769131560,3.7122,1638.4,1638.1,1.06083672]
[1693769132071,3.7122,1638.4,1638.0,0.64023162]
[1693769132250,3.7122,1638.4,1638.0,1.70106205]
[1693769132559,0.00354361,1638.3,1638.0,1.70106205]
[1693769132933,0.00354361,1638.3,1638.1,0.29753622]
[1693769133677,4.10092372,1638.5,1638.1,0.29753622]
[1693769134380,0.00355214,1638.4,1638.0,1.60057905]
[1693769134580,0.00355214,1638.4,1638.0,2.66135531]
[1693769134970,2.03455214,1638.4,1638.0,2.66135531]
[1693769149634,2.03455214,1638.4,1638.0,3.36782717]
[1693769149804,2.03455214,1638.4,1638.1,1.06077626]
[1693769150641,2.03455214,1638.4,1638.1,1.70100788]
[1693769157744,6.15775771,1638.3,1638.2,1.06077626]
[1693769158038,6.15775771,1638.3,1638.2,1.35825182]
[1693769158538,6.16130132,1638.3,1638.2,1.35825182]
[1693769161649,6.16130132,1638.3,1638.2,0.29747556]
[1693769161804,6.16130132,1638.3,1638.2,1.35824521]
[1693769162005,6.16130132,1638.3,1638.0,2.30705091]
[1693769162225,6.16130132,1638.3,1638.2,0.29747556]
[1693769162817,0.00354361,1638.3,1638.2,1.35824555]
[1693769163019,0.00354361,1638.3,1638.2,1.06076999]
[1693769163202,0.00354361,1638.3,1638.1,1.06076999]
[1693769163402,6.15775242,1638.3,1638.1,1.39755208]
[1693769163598,3.584,1638.4,1638.2,1.06076999]
[1693769163823,6.15775682,1638.3,1638.0,1.60057905]
[1693769164023,15.90811682,1638.3,1638.1,1.06081303]
[1693769164320,6.45784968,1638.3,1638.2,0.21641646]
[1693769164636,12.61597753,1638.3,1638.2,0.21641646]
[1693769164988,12.61597753,1638.3,1638.0,0.64023162]
[1693769165270,6.45784968,1638.3,1638.0,0.64023162]
[1693769165471,6.45784968,1638.3,1638.1,0.2164754]
[1693769166057,3.6463,1638.3,1638.1,0.2164754]
[1693769166452,3.6463,1638.3,1637.9,1.60057905]
[1693769166638,3.6463,1638.3,1637.9,2.66142375]
[1693769166844,2.0271,1638.2,1638.0,0.21664414]
[1693769167163,2.0271,1638.2,1638.1,1.06084386]
[1693769167678,0.00352656,1638.1,1638.0,0.85687576]
[1693769168022,0.00352656,1638.1,1638.0,1.91771624]
[1693769168542,2.0271,1638.2,1638.0,1.91771624]
[1693769168742,2.0271,1638.2,1638.1,1.06084048]
[1693769169528,2.03063509,1638.2,1638.1,1.06084048]
[1693769170978,2.03063509,1638.2,1638.0,0.64023162]
[1693769171334,2.03063509,1638.2,1638.1,0.21658519]
[1693769171537,2.03063509,1638.2,1638.1,1.27742567]
[1693769172084,2.03063509,1638.2,1638.1,1.06084048]
[1693769172576,2.03063509,1638.2,1638.0,0.64023162]
[1693769172760,2.03063509,1638.2,1638.1,1.06084048]
[1693769172931,2.03063509,1638.2,1638.0,0.64023162]
[1693769174580,2.03063509,1638.2,1638.1,0.21658519]
[1693769174776,2.03063509,1638.2,1638.1,1.27742567]
[1693769179840,2.03063509,1638.2,1638.1,1.06084048]
[1693769180034,2.03063509,1638.2,1638.0,0.64023162]
[1693769180236,2.03063509,1638.2,1638.1,0.21658519]
[1693769180682,2.03063509,1638.2,1638.1,1.27742567]
[1693769182282,2.03063509,1638.2,1638.1,1.06084048]
[1693769182871,2.03063509,1638.2,1638.0,0.64023162]
[1693769189480,2.03063509,1638.2,1637.8,2.9876]
[1693769189782,2.03063509,1638.2,1638.0,0.64088962]
[1693769190021,2.03063509,1638.2,1638.0,1.70172682]
[1693769195392,2.03063509,1638.2,1638.0,1.70172682]
[1693769204507,2.03063509,1638.2,1638.1,0.21647945]
[1693769204710,2.03063509,1638.2,1638.1,1.27731665]
[1693769206106,3.58363509,1638.2,1638.1,1.27731665]
[1693769206307,3.9920044,1638.2,1638.1,1.27731432]
[1693769240628,2.4390044,1638.2,1638.1,1.27731432]
[1693769240861,2.03063509,1638.2,1638.1,1.27731432]
[1693769243170,0.00353509,1638.2,1638.1,1.27731432]
[1693769243965,0.00353509,1638.2,1638.1,1.91855911]
[1693769244527,5.05022372,1638.5,1638.1,1.91855911]
[1693769244733,5.05022372,1638.5,1638.2,1.06083487]
[1693769245141,5.05022372,1638.5,1638.1,0.64124479]
[1693769245359,5.05022372,1638.5,1638.1,2.17250128]
[1693769245561,0.00343038,1638.4,1638.2,1.06077529]
[1693769249354,0.00343038,1638.4,1638.1,2.07359318]
[1693769249573,0.00343038,1638.4,1638.2,1.06074206]
[1693769252177,0.00343038,1638.4,1638.2,0.64124479]
[1693769252348,0.00343038,1638.4,1638.2,1.70198685]
[1693769253194,0.00343038,1638.4,1638.1,2.07359318]
[1693769253503,0.00343038,1638.4,1638.2,1.06069503]
[1693769253649,0.00343038,1638.4,1638.2,1.25296193]
[1693769253853,0.00343038,1638.4,1638.2,0.1922669]
[1693769254098,0.00343038,1638.4,1638.1,2.07359318]
[1693769254303,0.00343038,1638.4,1638.2,1.06069319]
[1693769254601,0.00343038,1638.4,1638.3,0.19207375]
[1693769254763,0.00343038,1638.4,1638.1,3.21249318]
[1693769254961,0.00343038,1638.4,1638.2,1.38194294]
[1693769255191,0.00343038,1638.4,1638.2,0.51351622]
[1693769255357,0.00343038,1638.4,1638.2,0.32124932]
[1693769259769,0.00343038,1638.4,1638.2,2.02315404]
[1693769259961,0.00343038,1638.4,1638.3,4.33458772]
[1693769260167,0.00343038,1638.4,1638.3,4.8642959]
[1693769260588,32.4052,1638.7,1638.3,4.8642959]
[1693769260797,32.4052,1638.7,1638.3,3.80363597]
[1693769261302,32.89830381,1638.7,1638.3,3.80363597]
[1693769261526,0.00331844,1638.6,1638.3,3.80363597]
[1693769261735,0.00331844,1638.6,1638.4,0.3803636]
[1693769264629,0.00331844,1638.6,1638.5,0.19045759]
[1693769297371,6.16012581,1638.6,1638.5,0.19045759]
[1693769298486,0.00331844,1638.6,1638.5,0.19045759]
[1693769300416,6.16003362,1638.6,1638.5,0.19045759]
[1693769304085,6.16003362,1638.6,1638.5,1.2510522]
[1693769313107,8.58081736,1638.6,1638.5,0.19045759]
[1693769313615,8.58081736,1638.6,1638.3,0.64124479]
[1693769313820,6.15671518,1638.5,1638.3,0.64124479]
[1693769314128,6.15671518,1638.5,1638.4,0.16083937]
[1693769314340,6.15671518,1638.5,1638.3,1.70190917]
[1693769314487,6.1600284,1638.5,1638.4,1.06066438]
[1693769315389,6.1600284,1638.5,1638.3,0.64124479]
[1693769315629,8.1889284,1638.5,1638.3,0.64124479]
[1693769315931,2.03221322,1638.5,1638.4,0.16080941]
[1693769316224,2.03221322,1638.5,1638.4,1.22147379]
[1693769316390,2.03221322,1638.5,1638.4,1.06066438]
[1693769316922,2.03221322,1638.5,1638.4,1.22126967]
[1693769317427,2.0289,1638.5,1638.4,1.22126967]
[1693769318227,8.18591598,1638.5,1638.4,1.22126967]
[1693769324847,2.0289,1638.5,1638.4,1.22126967]
[1693769328874,1.553,1638.6,1638.4,1.22126967]
[1693769329177,2.04610381,1638.7,1638.4,0.16060529]
[1693769329362,8.11103451,1638.6,1638.4,0.16060529]
[1693769329527,1.9541,1638.6,1638.4,0.16060529]
[1693769329729,1.9541,1638.6,1638.3,0.64124479]
[1693769329929,1.9541,1638.6,1638.3,1.70187345]
[1693769330178,1.9541,1638.6,1638.4,0.16027196]
[1693769330338,1.9541,1638.6,1638.3,1.60311198]
[1693769330538,1.9541,1638.6,1638.3,2.66372073]
[1693769330756,1.9541,1638.6,1638.4,0.16027196]
[1693769331048,1.9541,1638.6,1638.3,1.60311198]
[1693769331237,1.9541,1638.6,1638.3,2.66372071]
[1693769333383,1.9541,1638.6,1638.3,3.37352174]
[1693769333577,1.9541,1638.6,1638.4,1.06060873]
[1693769339543,1.9541,1638.6,1638.5,0.16008066]
[1693769340258,8.11091866,1638.6,1638.3,2.31291301]
[1693769340484,1.9541,1638.6,1638.4,1.06060755]
[1693769351095,2.35465516,1638.6,1638.4,1.06060755]
[1693769351297,3.90765516,1638.6,1638.3,1.60311198]
[1693769351492,3.5071,1638.6,1638.3,1.60311198]
[1693769354507,3.5071,1638.6,1638.4,0.14691298]
[1693769354915,3.5071,1638.6,1638.3,1.60311198]
[1693769360433,3.5071,1638.6,1638.3,1.60270037]
[1693769363746,3.5071,1638.6,1638.4,1.70169512]
[1693769363946,3.5071,1638.6,1638.5,1.06061497]
[1693769364239,3.90765516,1638.6,1638.5,1.06061497]
[1693769364451,10.06449706,1638.6,1638.4,0.64108015]
[1693769364612,3.90765516,1638.6,1638.4,0.64108015]
[1693769364815,3.90765516,1638.6,1638.3,1.60270037]
[1693769365110,3.5071,1638.6,1638.4,1.70169512]
[1693769365311,3.5071,1638.6,1638.5,1.06061497]
[1693769365506,1.9541,1638.6,1638.4,0.64108015]
[1693769365713,8.11094326,1638.6,1638.3,1.60270037]
[1693769365955,1.9541,1638.6,1638.3,1.60270037]
[1693769366450,1.9541,1638.6,1638.3,1.99724769]
[1693769366613,1.9541,1638.6,1638.4,1.06061248]
[1693769366814,1.9541,1638.6,1638.4,1.70169263]
[1693769369152,6.15684559,1638.5,1638.4,1.70169263]
[1693769369354,1.9541,1638.6,1638.4,1.70169263]
[1693769369653,1.9541,1638.6,1638.4,1.84860561]
[1693769369853,1.9541,1638.6,1638.5,1.06061248]
[1693769370151,8.11091499,1638.6,1638.5,1.06061248]
[1693769380473,8.11091499,1638.6,1638.5,1.06062578]
[1693769380773,8.11091499,1638.6,1638.4,1.84861891]
[1693769380942,1.9541,1638.6,1638.5,1.06062578]
[1693769381369,8.11100597,1638.6,1638.5,1.06062578]
[1693769383282,8.11100597,1638.6,1638.4,0.14691298]
[1693769383484,6.15690597,1638.5,1638.4,0.14691298]
[1693769383671,6.15690597,1638.5,1638.4,1.06062484]
[1693769383866,6.15690597,1638.5,1638.3,2.66332521]
[1693769384072,6.15690597,1638.5,1638.4,1.06062484]
[1693769384785,6.15690597,1638.5,1638.4,0.14691298]
[1693769384953,6.15690597,1638.5,1638.4,1.20753782]
[1693769385159,6.15690597,1638.5,1638.4,1.06062484]
[1693769385479,6.15690597,1638.5,1638.3,1.60270037]
[1693769390544,4.1699,1638.6,1638.3,1.60270037]
[1693769390746,6.1569091,1638.5,1638.3,1.60270037]
[1693769399428,6.1569091,1638.5,1638.4,0.14691298]
[1693769399925,6.1569091,1638.5,1638.4,1.06062484]
[1693769400088,6.1569091,1638.5,1638.3,1.60270037]
[1693769401435,6.1569091,1638.5,1638.4,1.06062484]
[1693769401789,6.1569091,1638.5,1638.3,0.64108015]
[1693769403508,8.2774091,1638.5,1638.3,0.64108015]
[1693769403807,2.1205,1638.5,1638.3,0.64108015]
[1693769404934,7.71039877,1638.4,1638.3,0.64108015]
[1693769405234,10.79225281,1638.4,1638.0,0.64108015]
[1693769405472,10.79225281,1638.4,1638.0,1.06084073]
[1693769405473,6.10426,1638.2,1638.0,1.06084073]
[1693769405605,6.10426,1638.2,1637.9,1.60270037]
[1693769405606,6.15808273,1638.1,1637.9,0.64108841]
[1693769405805,6.76850873,1638.1,1637.8,1.60275258]
[1693769406006,6.76850873,1638.1,1637.9,1.06095966]
[1693769406007,6.15808273,1638.0,1637.9,1.06095966]
[1693769406210,1.553,1638.0,1637.9,1.06095966]
[1693769407216,1.553,1638.0,1637.8,0.96163262]
[1693769407449,1.553,1637.9,1637.8,0.96163262]
[1693769407753,1.553,1637.9,1637.8,2.02259157]
[1693769409210,1.553,1637.9,1637.8,0.96163262]
[1693769410253,1.553,1638.1,1637.8,2.02257018]
[1693769410410,1.553,1638.1,1637.8,1.36621932]
[1693769412073,1.553,1638.1,1637.8,0.96163262]
[1693769415511,1.553,1638.1,1637.9,0.12871953]
[1693769416191,1.553,1638.1,1637.8,0.96163262]
[1693769416675,1.553,1638.1,1637.9,0.12871953]
[1693769419296,2.03561618,1638.1,1637.9,0.12871953]
[1693769436218,2.03561618,1638.1,1637.9,1.82856654]
[1693769436422,2.03561618,1638.1,1638.0,1.06090605]
[1693769436715,0.48261618,1638.1,1637.9,1.72607193]
[1693769436874,30.41,1638.3,1638.1,0.15387003]
[1693769437074,30.41,1638.3,1638.1,0.79288113]
[1693769437270,30.41,1638.3,1638.2,1.06090605]
[1693769439985,0.4863253,1638.3,1638.2,1.06090605]
[1693769440214,4.45675912,1638.5,1638.2,1.06090605]
[1693769440420,4.55178673,1638.6,1638.2,1.06090605]
[1693769440623,30.41,1638.7,1638.3,1.06090605]
[1693769440924,32.3859,1638.7,1638.4,1.06062188]
[1693769441129,30.41,1638.7,1638.3,0.6390111]
[1693769441284,30.41,1638.7,1638.3,1.69960917]
[1693769441485,30.41,1638.7,1638.5,0.12690756]
[1693769442024,30.41,1638.7,1638.3,3.44102254]
[1693769442231,30.41,1638.7,1638.4,1.40468928]
[1693769442412,30.41,1638.7,1638.3,1.59742254]
[1693769442597,30.41,1638.7,1638.4,0.12709802]
[1693769442796,30.41,1638.7,1638.3,2.65801117]
[1693769443008,4.0982,1638.8,1638.4,1.06058684]
[1693769443215,4.59762885,1638.8,1638.3,1.59742254]
[1693769443398,4.59762885,1638.8,1638.3,2.65801025]
[1693769444211,4.59762885,1638.8,1638.4,1.06058771]
[1693769444410,4.59762885,1638.8,1638.3,1.59742254]
[1693769444610,4.59762885,1638.8,1638.3,2.65801259]
[1693769445127,4.59762885,1638.8,1638.4,0.1274772]
[1693769445630,4.59762885,1638.8,1638.3,1.59742254]
[1693769445799,4.59762885,1638.8,1638.3,2.65801261]
[1693769446536,4.59762885,1638.8,1638.4,1.06059007]
[1693769446688,4.59762885,1638.8,1638.3,0.6390111]
[1693769446889,4.59762885,1638.8,1638.3,1.6996012]
[1693769448142,6.15062885,1638.8,1638.3,1.6996012]
[1693769448442,6.15062885,1638.8,1638.3,2.57755066]
[1693769448586,6.15062885,1638.8,1638.4,1.0605901]
[1693769453539,1.553,1638.7,1638.4,1.0605901]
[1693769459937,1.553,1638.7,1638.5,0.15274405]
[1693769460637,1.553,1638.7,1638.3,2.72066056]
[1693769460938,1.553,1638.7,1638.4,1.06059246]
[1693769461135,1.553,1638.7,1638.4,0.3781253]
[1693769461541,1.553,1638.7,1638.3,1.84235011]
[1693769461829,1.553,1638.7,1638.4,1.06059034]
[1693769462037,1.553,1638.7,1638.3,0.63865011]
[1693769462197,1.553,1638.7,1638.3,1.69924287]
[1693769467845,3.7044,1638.7,1638.3,1.69924287]
[1693769470046,3.7044,1638.7,1638.3,2.65721804]
[1693769472454,3.7044,1638.7,1638.3,3.65104987]
[1693769472638,2.0352,1638.6,1638.4,1.06059276]
[1693769473352,2.0352,1638.6,1638.4,1.69924287]
[1693769474985,2.0352,1638.6,1638.5,0.15303252]
[1693769475288,2.0352,1638.6,1638.5,1.21362528]
[1693769481410,2.0352,1638.6,1638.5,1.85227539]
[1693769481611,2.0352,1638.6,1638.5,1.21362528]
[1693769481801,2.0352,1638.6,1638.5,1.85227539]
[1693769482005,2.0352,1638.6,1638.5,1.21362528]
[1693769482185,2.39402,1638.6,1638.5,1.21362528]
[1693769482376,3.94702,1638.6,1638.5,1.21362528]
[1693769484676,3.94702,1638.6,1638.5,0.15303252]
[1693769485286,3.94702,1638.6,1638.5,1.06067004]
[1693769485486,3.94702,1638.6,1638.3,1.59662528]
[1693769485710,1.553,1638.5,1638.3,1.59662528]
[1693769485914,1.553,1638.5,1638.4,0.15043322]
[1693769486209,1.553,1638.5,1638.4,0.63865011]
[1693769486409,1.553,1638.5,1638.4,1.06067111]
[1693769486611,3.94702,1638.6,1638.3,1.59662528]
[1693769487313,3.94702,1638.6,1638.4,1.06067111]
[1693769487525,3.94702,1638.6,1638.3,0.63865011]
[1693769488282,3.94702,1638.6,1638.3,1.69932244]
[1693769488480,3.94702,1638.6,1638.4,1.06067233]
[1693769488711,3.94702,1638.6,1638.3,0.63865011]
[1693769490021,3.5882,1638.6,1638.3,1.69932302]
[1693769490314,3.5882,1638.6,1638.4,1.21191817]
[1693769490474,3.5882,1638.6,1638.4,0.15124526]
[1693769490711,3.5882,1638.6,1638.3,0.63865011]
[1693769492356,3.5882,1638.6,1638.2,1.59662528]
[1693769492522,3.5882,1638.6,1638.2,2.65727037]
[1693769499857,2.0352,1638.6,1638.2,2.65727037]
[1693769500064,2.0352,1638.6,1638.3,1.6992952]
[1693769500360,2.0352,1638.6,1638.4,1.06064509]
[1693769500536,2.0352,1638.6,1638.3,0.63865011]
[1693769505267,0.3034261,1638.5,1638.3,0.63865011]
[1693769511166,0.2034261,1638.5,1638.3,0.63865011]
[1693769511478,0.2908123,1638.5,1638.3,0.63865011]
[1693769516791,0.1908123,1638.5,1638.3,0.63865011]
[1693769517153,0.28247896,1638.5,1638.3,0.63865011]
[1693769522585,0.18247896,1638.5,1638.3,0.63865011]
[1693769522775,0.28247896,1638.5,1638.3,0.63865011]
[1693769523480,0.28247896,1638.5,1638.3,1.69927543]
[1693769523680,0.28247896,1638.5,1638.4,1.06062532]
[1693769524046,0.28247896,1638.5,1638.3,0.63865011]
[1693769527895,0.28247896,1638.5,1638.3,1.69927543]
[1693769528117,0.28247896,1638.5,1638.4,1.06062532]
[1693769528118,2.26207896,1638.5,1638.4,1.06062532]
[1693769528315,2.26207896,1638.5,1638.3,0.63865011]
[1693769530490,2.40403343,1638.5,1638.3,0.63865011]
[1693769540243,2.30403343,1638.5,1638.3,0.63865011]
[1693769540524,2.39847788,1638.5,1638.3,0.63865011]
[1693769542319,2.39847788,1638.5,1638.3,0.64120817]
[1693769550435,2.29847788,1638.5,1638.3,0.64120817]
[1693769550936,2.44237511,1638.5,1638.3,0.64120817]
[1693769570827,2.44237511,1638.5,1638.3,1.70184333]
[1693769571020,2.44237511,1638.5,1638.4,1.06063516]
[1693769571549,2.44237511,1638.5,1638.3,0.64120817]
[1693769572155,2.44237511,1638.5,1638.3,1.70184333]
[1693769572324,2.44237511,1638.5,1638.4,1.06063516]
[1693769572525,2.44237511,1638.5,1638.3,0.64120817]
[1693769572727,2.44237511,1638.5,1638.3,1.70184333]
[1693769572950,2.44237511,1638.5,1638.4,1.06063516]
[1693769573255,0.46277511,1638.5,1638.3,0.64120817]
[1693769573443,0.46277511,1638.5,1638.4,0.64120817]
[1693769573625,2.1504,1638.7,1638.4,1.60302042]
[1693769573826,2.1504,1638.7,1638.5,1.06063516]
[1693769574151,2.1504,1638.7,1638.4,0.64120817]
[1693769574743,2.1504,1638.7,1638.4,1.70175688]
[1693769575055,2.1504,1638.7,1638.5,1.06054871]
[1693769575258,2.1504,1638.7,1638.4,0.64120817]
[1693769575738,2.1504,1638.7,1638.4,1.70175138]
[1693769575948,2.1504,1638.7,1638.5,1.06054321]
[1693769576253,2.1504,1638.7,1638.4,0.64120817]
[1693769576552,2.62172885,1638.8,1638.4,0.64120817]
[1693769576752,4.73142885,1638.8,1638.4,0.64120817]
[1693769577455,4.73142885,1638.8,1638.4,1.70175228]
[1693769578657,4.73142885,1638.8,1638.3,1.1726]
[1693769578857,4.73142885,1638.8,1638.4,1.70135184]
[1693769579043,4.73142885,1638.8,1638.4,2.39305344]
[1693769579367,4.73142885,1638.8,1638.5,1.0605451]
[1693769580243,0.58130533,1638.7,1638.5,1.0605451]
[1693769581428,0.58130533,1638.7,1638.6,1.0605451]
[1693769581632,0.58130533,1638.7,1638.6,1.70135184]
[1693769581953,1.9817,1638.9,1638.6,1.0605451]
[1693769582152,1.9817,1638.9,1638.5,1.60201686]
[1693769582463,1.9817,1638.9,1638.5,2.66245042]
[1693769582840,1.9817,1638.9,1638.5,1.7012403]
[1693769583043,1.9817,1638.9,1638.6,1.06043356]
[1693769583241,2.47238933,1638.9,1638.6,1.54055759]
[1693769583561,2.47238933,1638.9,1638.6,0.48012403]
[1693769584349,2.47238933,1638.9,1638.5,3.74022568]
[1693769584548,2.1565,1638.8,1638.6,1.06044704]
[1693769585155,2.61488933,1638.9,1638.6,1.06044704]
[1693769585347,2.1242,1638.9,1638.6,1.06044704]
[1693769590274,2.1242,1638.9,1638.5,3.1]
[1693769590496,2.1242,1638.9,1638.6,0.31]
[1693769594689,2.1242,1638.9,1638.5,6.18185404]
[1693769594987,0.56537822,1638.8,1638.5,6.18185404]
[1693769595190,2.1242,1638.9,1638.5,6.18185404]
[1693769602879,2.1242,1638.9,1638.6,1.06042583]
[1693769610001,0.56556564,1638.8,1638.6,1.06042583]
[1693769610389,2.1242,1638.9,1638.6,1.06042583]
[1693769611407,2.76663246,1638.9,1638.6,1.06042583]
[1693769612196,2.1242,1638.9,1638.6,1.06042583]
[1693769620618,2.1242,1638.9,1638.6,1.70065151]
[1693769622087,2.74712461,1639.0,1638.6,4.78250555]
[1693769622287,2.1205,1639.1,1638.7,4.78250555]
[1693769622586,2.1205,1639.1,1638.8,1.06042583]
[1693769625021,0.56657922,1639.0,1638.8,1.06042583]
[1693769625533,0.47862328,1639.2,1638.9,3.08185404]
[1693769625765,2.23587008,1639.6,1639.3,3.0]
[1693769625897,2.23587008,1639.6,1639.4,3.08185404]
[1693769626228,0.101,1639.8,1639.4,3.08185404]
[1693769626555,0.101,1639.8,1639.5,4.0598337]
[1693769626832,0.101,1639.8,1639.7,0.64034412]
[1693769627007,0.101,1639.8,1639.7,4.19046959]
[1693769627355,0.101,1639.8,1639.7,3.55012547]
[1693769627502,0.101,1639.8,1639.7,4.60989638]
[1693769628705,0.101,1639.8,1639.7,0.46827143]
[1693769628917,0.101,1639.8,1639.6,1.05974557]
[1693769629120,0.101,1639.8,1639.6,4.14159961]
[1693769629298,0.101,1639.8,1639.7,1.05979445]
[1693769630319,0.48466051,1639.8,1639.7,4.15979445]
[1693769631121,2.03766051,1639.8,1639.7,3.1]
[1693769633402,2.44408306,1639.8,1639.7,3.1]
[1693769634143,2.03766051,1639.8,1639.7,3.1]
[1693769646074,1.43239264,1639.8,1639.5,0.64034412]
[1693769646446,1.43239264,1639.8,1639.5,1.70026841]
[1693769646770,1.43239264,1639.8,1639.6,1.05992429]
[1693769647069,1.43239264,1639.8,1639.5,0.64034412]
[1693769647368,1.43239264,1639.8,1639.5,1.70026885]
[1693769647566,1.43239264,1639.8,1639.6,1.05992473]
[1693769647739,1.43239264,1639.8,1639.5,0.64034412]
[1693769647936,1.43239264,1639.8,1639.5,1.6008603]
[1693769648135,1.43239264,1639.8,1639.6,1.0599249]
[1693769648332,0.52531875,1639.8,1639.6,1.0599249]
[1693769648754,1.553,1639.7,1639.6,1.0599249]
[1693769649157,1.553,1639.7,1639.6,1.70026902]
[1693769653741,2.08463191,1639.7,1639.6,1.70026902]
[1693769654047,0.53163191,1639.7,1639.6,2.26634754]
[1693769654256,0.101,1639.9,1639.7,1.06326381]
[1693769654459,0.101,1639.9,1639.8,1.59047473]
[1693769654661,0.101,1639.9,1639.8,2.01420974]
[1693769654861,0.101,1639.9,1639.8,2.65039944]
[1693769655062,0.101,1639.9,1639.8,2.51364489]
[1693769656755,0.101,1639.9,1639.8,2.01420974]
[1693769656976,0.101,1639.9,1639.8,1.69609773]
[1693769658170,0.101,1639.9,1639.8,2.65038257]
[1693769659087,0.101,1639.9,1639.8,2.01420974]
[1693769661250,0.101,1639.9,1639.8,0.95428484]
[1693769661451,0.101,1639.9,1639.8,2.01420974]
[1693769662279,0.58880392,1639.9,1639.8,0.95428484]
[1693769662586,0.58880392,1639.9,1639.8,2.01420974]
[1693769663285,0.58880392,1639.9,1639.8,3.29489798]
[1693769664289,0.58880392,1639.9,1639.8,2.34061314]
[1693769665368,0.58880392,1639.9,1639.8,2.84109726]
[1693769665760,1.21335197,1640.1,1639.8,2.84109726]
[1693769665960,2.2276,1640.2,1640.0,0.63732543]
[1693769666292,1.553,1640.1,1640.0,0.63732543]
[1693769666983,1.553,1640.1,1640.0,1.69725033]
[1693769667373,1.553,1640.1,1640.0,1.59331358]
[1693769669159,1.553,1640.1,1640.0,2.01591305]
[1693769669664,1.93106,1640.1,1640.0,0.95598815]
[1693769670170,1.93106,1640.1,1640.0,2.23667639]
[1693769670486,1.2951822,1640.1,1640.0,2.23667639]
[1693769671017,1.2951822,1640.1,1640.0,2.01591305]
[1693769671181,1.2951822,1640.1,1640.0,1.28068824]
[1693769671763,1.2951822,1640.1,1640.0,4.28068824]
[1693769671959,1.2951822,1640.1,1640.0,5.34061314]
[1693769672505,1.2951822,1640.1,1640.0,6.29988152]
[1693769673208,1.2951822,1640.1,1640.0,5.01919328]
[1693769673500,1.2951822,1640.1,1640.0,5.34061314]
[1693769673665,1.74290399,1640.1,1640.0,5.34061314]
[1693769674266,1.74290399,1640.1,1640.0,6.29987095]
[1693769674782,1.74290399,1640.1,1640.0,5.01918271]
[1693769676284,1.74290399,1640.1,1640.0,5.65868139]
[1693769676892,1.74290399,1640.1,1640.0,4.69942358]
[1693769678184,1.74290399,1640.1,1640.0,4.0599249]
[1693769680316,1.74290399,1640.1,1640.0,3.0]